bitfinex-derivatives/quotes_SOLF0:USTF0_20241212
["timestamp","ask_amount","ask_price","bid_price","bid_amount"]
[1734035988773,10.03375926,229.37,229.26,2.8423]
[1734035988774,2.1803,229.29,229.26,2.8423]
[1734035989674,2.1804,229.28,229.26,2.8423]
[1734035990475,2.1805,229.27,229.26,2.8423]
[1734035994272,4.3582,229.42,229.26,2.8423]
[1734035994474,6.43105646,229.34,229.27,6.43105646]
[1734035994673,6.43105646,229.34,229.27,8.81105646]
[1734035994877,2.1803,229.29,229.27,8.81105646]
[1734035995971,2.38,229.39,229.26,5.2223]
[1734035995972,6.43105646,229.32,229.26,5.2223]
[1734035996577,2.1804,229.28,229.26,5.2223]
[1734035997275,2.1804,229.28,229.27,6.43105646]
[1734035997473,2.1803,229.29,229.27,6.43105646]
[1734036000578,2.1804,229.28,229.26,5.2223]
[1734036001575,1.0,229.41,229.27,6.43105646]
[1734036001886,0.67316317,229.4,229.34,6.43105646]
[1734036002084,2.1794,229.38,229.35,2.1797]
[1734036002274,2.1794,229.38,229.34,8.81105646]
[1734036002480,7.43105646,229.41,229.34,2.38]
[1734036003382,7.43105646,229.41,229.35,6.43105646]
[1734036003578,5.19108898,229.45,229.35,6.43105646]
[1734036003579,6.43105646,229.43,229.35,6.43105646]
[1734036003885,0.67302735,229.42,229.35,7.76435646]
[1734036004183,6.43105646,229.43,229.35,7.76435646]
[1734036004483,6.43105646,229.43,229.35,9.94395646]
[1734036004873,2.1794,229.39,229.35,9.94395646]
[1734036005078,6.43105646,229.41,229.35,1.3333]
[1734036005277,6.43105646,229.41,229.35,7.76435646]
[1734036005573,2.1794,229.38,229.35,7.76435646]
[1734036006184,6.43105646,229.41,229.35,7.76435646]
[1734036006780,2.1795,229.38,229.35,7.76435646]
[1734036008577,6.43105646,229.37,229.3,1.4504]
[1734036008784,2.38,229.44,229.3,2.38]
[1734036008785,6.43105646,229.35,229.3,2.38]
[1734036008982,6.43105646,229.35,229.29,8.81105646]
[1734036009885,2.1799,229.33,229.29,10.99135646]
[1734036010586,2.1801,229.31,229.29,8.81105646]
[1734036011486,6.43105646,229.37,229.29,8.81105646]
[1734036011902,6.43105646,229.31,229.26,1.331]
[1734036012081,6.43105646,229.29,229.21,32.83937938]
[1734036012287,6.43105646,229.29,229.21,2.38]
[1734036012487,6.43105646,229.29,229.22,6.43105646]
[1734036012488,2.1805,229.27,229.22,6.43105646]
[1734036012886,2.1805,229.27,229.22,11.78275252]
[1734036013390,2.1805,229.27,229.23,2.1808]
[1734036014389,6.43105646,229.31,229.22,11.78275252]
[1734036014587,2.1806,229.26,229.22,13.96365252]
[1734036015183,6.43105646,229.29,229.22,13.96365252]
[1734036015381,2.1807,229.25,229.22,11.78275252]
[1734036015581,6.43105646,229.29,229.22,6.43105646]
[1734036016093,2.1807,229.25,229.22,6.43105646]
[1734036016793,2.1808,229.23,229.21,2.38]
[1734036017092,6.43105646,229.25,229.19,3.7212]
[1734036017292,2.181,229.21,229.19,1.3412]
[1734036017590,6.43105646,229.25,229.19,1.3412]
[1734036017791,2.1808,229.24,229.19,1.3412]
[1734036017988,6.43105646,229.27,229.2,6.43105646]
[1734036019390,2.1809,229.23,229.2,6.43105646]
[1734036020394,6.43105646,229.27,229.2,6.43105646]
[1734036021091,6.43105646,229.29,229.22,6.43105646]
[1734036021687,2.1805,229.27,229.22,8.61195646]
[1734036021887,1.3436,229.34,229.19,1.3412]
[1734036021888,2.38,229.38,229.26,6.43105646]
[1734036022087,6.43105646,229.35,229.26,6.43105646]
[1734036022389,6.43105646,229.33,229.26,6.43105646]
[1734036023092,6.43105646,229.29,229.23,2.38]
[1734036023796,6.43105646,229.31,229.23,8.81105646]
[1734036024197,6.43105646,229.31,229.25,6.43105646]
[1734036024198,2.1803,229.29,229.25,6.43105646]
[1734036024497,6.43105646,229.33,229.25,6.43105646]
[1734036024697,2.1803,229.3,229.25,8.61165646]
[1734036024995,6.43105646,229.31,229.23,8.81105646]
[1734036025199,2.1799,229.33,229.23,10.99185646]
[1734036025493,6.43105646,229.32,229.23,8.81105646]
[1734036025895,2.1803,229.29,229.24,2.1807]
[1734036026095,6.43105646,229.32,229.24,2.1807]
[1734036026699,2.1804,229.28,229.23,10.99185646]
[1734036027002,6.43105646,229.3,229.23,8.81105646]
[1734036027202,2.1805,229.27,229.23,8.81105646]
[1734036028199,2.1805,229.27,229.23,10.99185646]
[1734036029201,2.1806,229.26,229.23,10.99185646]
[1734036029994,6.43105646,229.3,229.23,8.81105646]
[1734036030198,6.43105646,229.28,229.23,2.38]
[1734036030897,4.3589,229.39,229.19,1.3412]
[1734036030898,2.1808,229.23,229.19,7.77225646]
[1734036031197,2.1804,229.29,229.19,3.7212]
[1734036031495,2.38,229.32,229.19,3.7212]
[1734036031496,6.43105646,229.25,229.19,3.7212]
[1734036032197,6.43105646,229.25,229.19,1.3412]
[1734036032705,2.181,229.22,229.19,1.3412]
[1734036033696,2.181,229.21,229.19,1.3412]
[1734036033898,6.43105646,229.25,229.19,1.3412]
[1734036034494,2.181,229.21,229.19,1.3412]
[1734036035600,2.8181,229.31,229.19,7.77225646]
[1734036035800,6.43105646,229.29,229.23,6.43105646]
[1734036036104,6.43105646,229.31,229.23,8.81105646]
[1734036036304,2.1804,229.28,229.24,2.1807]
[1734036037904,2.1804,229.28,229.23,10.99185646]
[1734036038101,2.38,229.34,229.23,8.81105646]
[1734036038298,2.1803,229.3,229.23,8.81105646]
[1734036038501,6.43105646,229.31,229.25,2.1806]
[1734036039103,2.1803,229.29,229.25,2.1806]
[1734036039403,6.43105646,229.34,229.27,6.43105646]
[1734036039605,6.43105646,229.34,229.28,2.38]
[1734036039907,8.61085646,229.34,229.29,2.1803]
[1734036040301,2.1797,229.35,229.3,2.1801]
[1734036041507,2.1798,229.34,229.29,2.1803]
[1734036041703,2.1798,229.34,229.28,2.38]
[1734036042008,6.43105646,229.32,229.28,2.38]
[1734036042708,8.61105646,229.32,229.28,2.38]
[1734036043606,2.1801,229.31,229.28,2.38]
[1734036044708,6.43105646,229.34,229.28,2.38]
[1734036044709,2.1803,229.3,229.28,2.38]
[1734036046603,1.3198,229.39,229.29,6.43105646]
[1734036046810,6.43105646,229.39,229.31,6.43105646]
[1734036047102,2.1797,229.36,229.31,8.61115646]
[1734036047307,6.43105646,229.39,229.31,8.61115646]
[1734036047904,7.57108898,229.45,229.31,8.61115646]
[1734036048112,0.67306815,229.44,229.31,8.61115646]
[1734036048304,6.43105646,229.37,229.29,7.79435646]
[1734036048606,6.43105646,229.34,229.29,1.3633]
[1734036048814,2.1799,229.34,229.29,3.5435]
[1734036049005,8.61095646,229.34,229.29,3.5435]
[1734036049206,2.1799,229.33,229.29,3.5435]
[1734036051207,2.1798,229.34,229.31,6.43105646]
[1734036051614,6.43105646,229.41,229.34,2.1797]
[1734036051923,6.43105646,229.41,229.35,2.38]
[1734036052608,2.1793,229.39,229.35,2.38]
[1734036053412,6.43105646,229.43,229.35,10.99065646]
[1734036054105,2.1791,229.42,229.35,4.5596]
[1734036054306,2.7611,229.49,229.39,6.43105646]
[1734036054504,6.43105646,229.46,229.4,2.36]
[1734036056613,2.1789,229.44,229.4,2.36]
[1734036057014,2.179,229.43,229.4,2.36]
[1734036057511,134.23281,229.5,229.41,6.43105646]
[1734036057717,134.23281,229.5,229.45,6.43105646]
[1734036058017,134.23281,229.5,229.45,10.96975646]
[1734036058319,134.23281,229.5,229.47,6.43105646]
[1734036058320,132.05451,229.5,229.47,6.43105646]
[1734036058818,132.05451,229.5,229.47,8.60955646]
[1734036059312,132.05451,229.5,229.45,2.36]
[1734036059313,123.90171,229.5,229.49,2.1784]
[1734036059913,117.34791,229.5,229.49,2.1784]
[1734036060713,117.34791,229.5,229.46,1.3229]
[1734036060913,117.34791,229.5,229.42,10.02775593]
[1734036061113,117.34791,229.5,229.43,2.36]
[1734036061611,2.1786,229.47,229.43,2.36]
[1734036061817,2.1786,229.47,229.41,2.6948]
[1734036061818,117.34791,229.5,229.41,2.6948]
[1734036062015,117.34791,229.5,229.42,2.36]
[1734036062016,2.1789,229.43,229.42,2.36]
[1734036065922,2.1788,229.45,229.42,2.36]
[1734036066124,117.34791,229.5,229.42,2.36]
[1734036067840,2.1786,229.47,229.42,12.38775593]
[1734036068128,117.34791,229.5,229.42,12.38775593]
[1734036068332,2.1785,229.48,229.42,14.56675593]
[1734036068523,117.34791,229.5,229.42,12.38775593]
[1734036068929,2.1785,229.48,229.43,2.1789]
[1734036069229,117.34791,229.5,229.42,12.38775593]
[1734036069632,2.1785,229.48,229.42,14.56665593]
[1734036070229,2.1786,229.47,229.42,14.56665593]
[1734036070833,117.34791,229.5,229.42,2.36]
[1734036071225,117.34791,229.5,229.35,4.1393]
[1734036071226,127.37566593,229.5,229.36,10.02775593]
[1734036071430,127.37566593,229.5,229.37,4.5395]
[1734036072831,2.1791,229.42,229.38,2.1794]
[1734036074341,127.37566593,229.5,229.39,10.02775593]
[1734036074342,117.34791,229.5,229.39,10.02775593]
[1734036074537,117.34791,229.5,229.43,10.02775593]
[1734036074734,117.34791,229.5,229.43,12.38775593]
[1734036075241,2.1785,229.48,229.43,12.38775593]
[1734036075533,117.34791,229.5,229.43,12.38775593]
[1734036076732,2.1786,229.47,229.43,12.38775593]
[1734036077133,117.34791,229.5,229.43,12.38775593]
[1734036077542,2.1785,229.49,229.45,2.1787]
[1734036077740,117.34791,229.5,229.43,12.38775593]
[1734036078843,117.34791,229.5,229.46,10.02775593]
[1734036079244,117.34791,229.5,229.48,2.1785]
[1734036079442,117.34791,229.5,229.49,2.36]
[1734036079838,2.1787,229.47,229.45,2.36]
[1734036080439,2.1787,229.46,229.45,2.36]
[1734036080639,117.34791,229.5,229.43,2.36]
[1734036081241,117.34791,229.5,229.43,4.5389]
[1734036081442,117.34791,229.5,229.43,2.36]
[1734036082644,2.1788,229.45,229.43,2.36]
[1734036083045,2.1788,229.44,229.43,2.36]
[1734036084043,117.34791,229.5,229.39,2.36]
[1734036084044,2.179,229.42,229.39,2.36]
[1734036084343,129.73566593,229.5,229.34,15.21720855]
[1734036084547,2.1794,229.39,229.35,2.36]
[1734036085137,1.445,229.46,229.35,2.36]
[1734036085342,2.1792,229.4,229.35,2.36]
[1734036085548,1.445,229.46,229.35,2.36]
[1734036086745,2.1793,229.39,229.35,2.36]
[1734036087645,1.445,229.46,229.35,4.5397]
[1734036088042,2.1792,229.41,229.36,2.36]
[1734036088248,1.445,229.46,229.36,2.36]
[1734036089341,1.445,229.46,229.37,14.30397065]
[1734036089540,1.445,229.46,229.37,10.02775593]
[1734036089942,2.1789,229.44,229.38,2.1793]
[1734036090653,2.179,229.43,229.38,2.1793]
[1734036092946,2.179,229.43,229.39,2.1793]
[1734036093151,2.1791,229.42,229.39,2.1793]
[1734036093354,2.1791,229.42,229.37,10.02775593]
[1734036093659,2.1791,229.42,229.38,2.1794]
[1734036095357,1.445,229.46,229.35,24.02832292]
[1734036095553,1.445,229.46,229.26,181.6398219]
[1734036095554,10.70059991,229.45,229.33,6.00708073]
[1734036095857,10.02775593,229.45,229.35,2.1797]
[1734036096058,3.805,229.46,229.34,10.02775593]
[1734036096356,3.805,229.46,229.36,2.1796]
[1734036096357,2.179,229.43,229.36,2.1796]
[1734036096557,1.445,229.46,229.37,2.36]
[1734036096959,2.179,229.43,229.38,2.1794]
[1734036097158,6.42444265,229.45,229.37,8.78444265]
[1734036098249,2.1791,229.41,229.37,10.96394265]
[1734036098449,2.1791,229.41,229.37,8.78444265]
[1734036098651,6.42444265,229.43,229.37,2.36]
[1734036099252,1.445,229.46,229.37,2.36]
[1734036099253,6.42444265,229.41,229.37,2.36]
[1734036099454,2.1794,229.38,229.33,10.96434265]
[1734036099854,2.1794,229.38,229.33,8.60434265]
[1734036100159,6.42444265,229.39,229.33,6.42444265]
[1734036100459,2.18,229.33,229.3,8.78444265]
[1734036101256,2.18,229.32,229.3,2.36]
[1734036101955,2.18,229.32,229.28,2.1804]
[1734036102156,2.1801,229.31,229.29,2.36]
[1734036103259,2.1803,229.29,229.26,2.1806]
[1734036103563,10.04473446,229.38,229.26,2.36]
[1734036103764,1.3464,229.37,229.26,2.36]
[1734036103956,1.3464,229.37,229.24,2.36]
[1734036104358,2.1805,229.27,229.24,2.36]
[1734036105056,2.36,229.34,229.24,2.36]
[1734036105265,2.1806,229.26,229.24,2.36]
[1734036105558,2.36,229.34,229.23,10.04473446]
[1734036105760,2.1802,229.31,229.26,2.1805]
[1734036106262,2.1802,229.3,229.26,2.1805]
[1734036107465,2.1802,229.3,229.25,2.1806]
[1734036108458,2.1807,229.25,229.2,8.18818073]
[1734036108765,1.3464,229.37,229.18,5.13158245]
[1734036108766,10.04473446,229.31,229.18,5.13158245]
[1734036108969,3.47057608,229.3,229.18,5.13158245]
[1734036109267,2.7972,229.3,229.19,10.04473446]
[1734036109766,2.1806,229.26,229.2,2.1811]
[1734036110066,2.7972,229.3,229.2,2.1811]
[1734036110458,2.7972,229.3,229.19,10.04473446]
[1734036110459,2.1809,229.23,229.19,10.04473446]
[1734036110668,10.04473446,229.29,229.17,4.5414]
[1734036111064,1.34,229.28,229.18,2.1813]
[1734036111669,1.34,229.28,229.17,2.36]
[1734036111969,2.181,229.22,229.17,2.36]
[1734036112862,2.181,229.22,229.17,4.5414]
[1734036113265,2.181,229.22,229.17,2.36]
[1734036113465,2.181,229.22,229.17,7.64158798]
[1734036113662,2.1808,229.24,229.19,2.1812]
[1734036114162,1.34,229.28,229.17,7.64158798]
[1734036115672,2.1808,229.23,229.19,2.1812]
[1734036117369,2.1808,229.23,229.18,2.36]
[1734036117571,1.34,229.28,229.18,4.5413]
[1734036117772,2.181,229.22,229.18,4.5413]
[1734036118470,2.181,229.21,229.18,4.5413]
[1734036118674,10.04473446,229.26,229.16,2.1815]
[1734036118874,10.04473446,229.26,229.16,7.51703518]
[1734036119070,2.1812,229.2,229.16,7.51703518]
[1734036119272,10.04473446,229.26,229.16,5.33553518]
[1734036119473,10.04473446,229.26,229.17,2.1814]
[1734036119674,2.1811,229.21,229.17,2.1814]
[1734036120386,1.34,229.28,229.19,10.04473446]
[1734036120675,1.34,229.28,229.2,2.36]
[1734036121578,2.1808,229.24,229.2,2.36]
[1734036123382,1.34,229.28,229.22,2.1809]
[1734036123680,1.34,229.28,229.2,2.36]
[1734036123879,2.7972,229.3,229.23,2.1808]
[1734036123880,2.1805,229.27,229.23,2.1808]
[1734036124179,10.04473446,229.32,229.2,2.36]
[1734036124776,2.1804,229.28,229.23,2.1808]
[1734036125179,10.04473446,229.32,229.2,2.36]
[1734036125180,2.1807,229.24,229.2,2.36]
[1734036125586,10.04473446,229.32,229.17,1.352]
[1734036125885,10.04473446,229.29,229.17,2.36]
[1734036126083,2.753,229.28,229.17,2.36]
[1734036126477,2.1812,229.2,229.16,5.33553518]
[1734036128088,2.1812,229.2,229.17,2.1814]
[1734036130082,2.1813,229.19,229.16,7.51703518]
[1734036133791,2.753,229.28,229.16,15.38026964]
[1734036134989,2.1811,229.21,229.18,2.1812]
[1734036135195,2.753,229.28,229.16,5.33553518]
[1734036135786,2.1807,229.25,229.17,2.1814]
[1734036135992,2.753,229.28,229.17,2.1814]
[1734036140197,2.1816,229.16,229.12,2.1818]
[1734036140396,2.1816,229.16,229.12,7.50674223]
[1734036140597,2.1814,229.17,229.15,6.43897037]
[1734036141197,2.1814,229.17,229.12,15.38231876]
[1734036141590,2.1814,229.17,229.14,2.1816]
[1734036144300,2.1814,229.17,229.14,8.18868073]
[1734036144500,2.1814,229.17,229.14,2.1816]
[1734036145095,10.05737653,229.2,229.12,24.02832292]
[1734036145296,10.05737653,229.2,229.09,26.38832292]
[1734036145497,10.05737653,229.2,229.1,4.28534954]
[1734036145700,10.05737653,229.17,229.08,8.36708073]
[1734036146000,10.05737653,229.17,229.08,2.36]
[1734036146199,10.05737653,229.17,229.07,6.00708073]
[1734036146399,10.05737653,229.17,229.06,24.02832292]
[1734036146594,1.3772,229.16,229.07,4.2853826]
[1734036146801,1.3772,229.16,229.06,6.00708073]
[1734036147197,10.05737653,229.11,229.05,6.00708073]
[1734036147396,10.05737653,229.11,229.02,24.02832292]
[1734036147599,2.1823,229.08,229.03,4.28586864]
[1734036147801,2.1823,229.08,229.02,8.18988073]
[1734036148001,10.05737653,229.11,229.02,8.18988073]
[1734036148203,10.05737653,229.11,229.02,2.1828]
[1734036148500,12.41737653,229.11,229.02,2.1828]
[1734036148700,2.1824,229.07,229.02,2.1828]
[1734036149298,2.36,229.13,229.02,5.12341276]
[1734036149499,2.36,229.15,229.03,45.41919366]
[1734036149699,2.36,229.15,229.04,10.28568945]
[1734036150006,2.182,229.11,229.07,2.1823]
[1734036150206,1.3772,229.16,229.07,2.1823]
[1734036150404,2.182,229.12,229.07,2.1823]
[1734036150599,1.3772,229.16,229.05,2.36]
[1734036150906,11.43457653,229.16,229.05,2.36]
[1734036151404,2.36,229.15,229.05,2.36]
[1734036151799,2.182,229.12,229.07,2.1823]
[1734036152808,10.05737653,229.13,229.04,6.00708073]
[1734036153013,10.05737653,229.13,229.02,6.00708073]
[1734036153303,10.05737653,229.13,229.01,20.38124219]
[1734036153304,10.05737653,229.13,229.01,26.38832292]
[1734036153510,10.05737653,229.13,229.02,6.4506855]
[1734036153715,10.05737653,229.13,229.02,2.1828]
[1734036154002,10.05737653,229.1,228.98,3.7322]
[1734036154209,12.41737653,229.1,228.98,8.86511024]
[1734036154410,2.1828,229.03,228.98,11.04831024]
[1734036154908,2.1829,229.02,228.98,2.36]
[1734036155207,2.1829,229.02,228.97,3.6201]
[1734036155504,10.05737653,229.05,228.95,6.00708073]
[1734036155708,2.36,229.04,228.93,24.02832292]
[1734036156009,3.6752,229.04,228.92,24.02832292]
[1734036156211,2.1833,228.98,228.93,4.27183305]
[1734036156409,2.1833,228.98,228.92,8.19088073]
[1734036156611,2.1833,228.98,228.92,2.1838]
[1734036156808,2.1833,228.98,228.93,7.31594551]
[1734036157708,1.3152,229.04,228.93,5.13224551]
[1734036158006,2.36,229.06,228.95,10.05737653]
[1734036158208,2.1828,229.02,228.98,2.1832]
[1734036158807,2.36,229.07,228.95,10.05737653]
[1734036159014,2.183,229.01,228.96,2.1834]
[1734036159418,2.1829,229.02,228.95,2.1835]
[1734036159713,10.05737653,229.05,228.95,2.1835]
[1734036160107,2.1831,229.0,228.95,2.1835]
[1734036160313,10.05737653,229.05,228.95,2.1835]
[1734036160614,10.05737653,229.05,228.96,2.1834]
[1734036160917,2.183,229.01,228.93,5.13224551]
[1734036161215,2.183,229.01,228.97,2.1833]
[1734036161413,10.05737653,229.05,228.93,5.13224551]
[1734036161612,2.183,229.01,228.97,2.1832]
[1734036162411,2.183,229.01,228.93,11.13932624]
[1734036162412,2.183,229.0,228.96,2.1834]
[1734036163213,2.1832,228.99,228.93,5.13224551]
[1734036164812,2.183,229.0,228.96,2.1834]
[1734036166017,2.183,229.0,228.93,5.13224551]
[1734036166018,2.1829,229.01,228.93,5.13224551]
[1734036166319,10.05737653,229.05,228.93,5.13224551]
[1734036166817,2.1829,229.02,228.93,5.13224551]
[1734036167323,2.1831,229.0,228.93,5.13224551]
[1734036167922,2.1831,229.0,228.96,2.1833]
[1734036168123,2.183,229.01,228.93,5.13224551]
[1734036168621,10.05737653,229.08,228.98,2.1832]
[1734036168824,5.12654076,229.13,229.01,10.05737653]
[1734036169526,5.1737,229.17,229.04,10.05737653]
[1734036169721,2.8137,229.17,229.04,12.41737653]
[1734036169919,2.182,229.11,229.07,2.1824]
[1734036170122,2.182,229.11,229.04,12.41737653]
[1734036170320,5.1737,229.17,229.04,12.41737653]
[1734036170621,2.1819,229.12,229.04,12.41737653]
[1734036171424,2.182,229.11,229.07,2.1823]
[1734036171625,2.182,229.11,229.04,12.41737653]
[1734036171815,2.8137,229.17,229.04,12.41737653]
[1734036172022,5.32970508,229.2,229.07,10.05737653]
[1734036172517,10.05737653,229.21,229.07,10.05737653]
[1734036172718,10.05737653,229.21,229.08,1.3186]
[1734036172925,2.1816,229.16,229.12,2.1819]
[1734036173324,2.1814,229.18,229.13,2.1818]
[1734036173526,10.05737653,229.21,229.13,2.1818]
[1734036173716,1.4498,229.23,229.13,2.1818]
[1734036174726,10.05737653,229.21,229.11,2.1819]
[1734036175720,2.1816,229.15,229.11,2.1819]
[1734036175928,12.41737653,229.21,229.1,2.1821]
[1734036176726,119.52961,229.14,229.1,2.1821]
[1734036176926,117.34791,229.14,229.11,2.182]
[1734036178631,117.34791,229.14,229.13,2.1818]
[1734036182328,117.34791,229.14,229.12,2.1819]
[1734036183432,117.34791,229.14,229.13,2.1818]
[1734036184130,117.34791,229.14,229.12,2.1819]
[1734036185127,117.34791,229.14,229.13,2.1818]
[1734036186735,92.9845888,229.14,229.13,2.1818]
[1734036189730,88.6133888,229.14,229.13,2.1818]
[1734036189931,0.66278615,229.14,229.13,2.1818]
[1734036190434,2.36,229.37,229.13,20.20448242]
[1734036190635,2.1801,229.31,229.22,10.05737653]
[1734036190931,5.1246,229.37,229.23,2.36]
[1734036191131,0.67325749,229.34,229.23,2.36]
[1734036191430,15.37300886,229.35,229.26,2.1805]
[1734036191838,2.1803,229.3,229.26,2.1805]
[1734036192534,15.37300886,229.35,229.27,2.1804]
[1734036192833,10.05737653,229.35,229.23,2.36]
[1734036193034,2.7646,229.37,229.3,2.1801]
[1734036193332,2.7646,229.37,229.28,2.36]
[1734036193532,10.05737653,229.35,229.28,4.5404]
[1734036193940,2.1799,229.33,229.28,2.36]
[1734036194434,2.1801,229.31,229.28,2.36]
[1734036194637,10.05737653,229.35,229.28,2.36]
[1734036194832,2.7646,229.37,229.28,2.36]
[1734036195040,4.9442,229.37,229.32,2.18]
[1734036195433,10.05737653,229.41,229.28,2.36]
[1734036195641,2.1793,229.39,229.28,2.36]
[1734036196140,2.1793,229.39,229.29,10.05737653]
[1734036196638,2.1793,229.39,229.34,2.1797]
[1734036196836,2.1794,229.38,229.34,2.1797]
[1734036197335,10.05737653,229.41,229.33,2.36]
[1734036198043,2.1795,229.38,229.33,4.5398]
[1734036198243,2.1795,229.38,229.33,2.36]
[1734036198937,2.1795,229.37,229.33,2.36]
[1734036199339,10.05737653,229.41,229.34,2.1798]
[1734036199844,2.1793,229.39,229.34,2.1798]
[1734036200040,1.3569,229.42,229.34,2.1798]
[1734036200447,10.73042597,229.41,229.33,2.36]
[1734036200645,10.05737653,229.41,229.33,2.36]
[1734036200841,2.1796,229.37,229.3,2.1801]
[1734036201044,10.05737653,229.41,229.31,2.36]
[1734036202041,1.3569,229.42,229.31,2.36]
[1734036202347,1.3569,229.42,229.32,10.05737653]
[1734036202938,2.1791,229.41,229.36,2.1796]
[1734036203136,2.7183,229.45,229.37,2.36]
[1734036203645,2.7183,229.45,229.37,4.5395]
[1734036203843,2.7183,229.45,229.37,2.36]
[1734036204444,2.1792,229.41,229.37,2.36]
[1734036205140,2.7183,229.45,229.32,10.05737653]
[1734036205341,2.7183,229.45,229.33,2.36]
[1734036205342,10.05737653,229.43,229.33,2.36]
[1734036205541,10.05737653,229.43,229.34,2.36]
[1734036205754,2.1795,229.37,229.34,2.36]
[1734036206047,10.05737653,229.4,229.32,2.36]
[1734036206242,2.18,229.32,229.31,2.36]
[1734036206550,1.3234,229.39,229.3,2.36]
[1734036206750,2.18,229.33,229.3,2.36]
[1734036207449,2.18,229.32,229.3,2.36]
[1734036207955,2.1796,229.36,229.3,2.36]
[1734036208651,2.1797,229.35,229.31,2.1801]
[1734036209649,1.3234,229.39,229.29,2.1802]
[1734036209953,1.3234,229.39,229.28,2.36]
[1734036209954,10.05737653,229.37,229.28,2.36]
[1734036210351,2.812,229.36,229.28,2.36]
[1734036210550,2.1802,229.31,229.28,2.36]
[1734036211054,10.05737653,229.34,229.24,2.1807]
[1734036211247,10.05737653,229.34,229.25,2.36]
[1734036211451,10.05737653,229.34,229.22,10.05737653]
[1734036211452,2.1806,229.26,229.22,12.41737653]
[1734036211655,10.05737653,229.34,229.22,2.36]
[1734036211952,10.05737653,229.34,229.22,7.61660486]
[1734036212453,2.1806,229.26,229.22,9.79750486]
[1734036214448,2.1807,229.25,229.22,2.1809]
[1734036214853,10.05737653,229.34,229.22,2.1809]
[1734036215052,0.67335551,229.33,229.22,2.1809]
[1734036215659,10.05737653,229.34,229.22,2.1809]
[1734036215856,0.67335639,229.33,229.22,2.1809]
[1734036216053,10.05737653,229.34,229.22,2.1809]
[1734036216252,0.67334393,229.33,229.22,2.1809]
[1734036216451,1.34668837,229.33,229.22,2.1809]
[1734036216656,0.67334393,229.33,229.22,2.1809]
[1734036216956,10.05737653,229.34,229.24,2.1807]
[1734036217155,0.67334153,229.33,229.22,10.05737653]
[1734036217350,2.812,229.36,229.22,10.05737653]
[1734036217556,2.18,229.32,229.25,10.05737653]
[1734036218453,2.812,229.36,229.28,10.05737653]
[1734036218653,2.812,229.36,229.28,12.41737653]
[1734036219548,2.1798,229.34,229.3,2.1802]
[1734036222557,2.1797,229.35,229.31,2.1801]
[1734036222954,2.1797,229.35,229.28,12.41737653]
[1734036222955,1.3867,229.36,229.28,12.41737653]
[1734036223161,2.1796,229.37,229.33,2.1799]
[1734036223457,1.3342,229.45,229.34,10.05737653]
[1734036223658,2.1792,229.41,229.36,2.1796]
[1734036223862,1.3342,229.45,229.34,10.05737653]
[1734036224362,2.1789,229.43,229.34,10.05737653]
[1734036225063,2.1789,229.43,229.38,2.1794]
[1734036225359,2.1789,229.43,229.38,4.5394]
[1734036225565,2.179,229.42,229.38,4.5394]
[1734036225963,1.3342,229.45,229.38,2.36]
[1734036226163,1.3342,229.45,229.39,2.1793]
[1734036226358,1.3342,229.45,229.38,2.36]
[1734036226665,2.1787,229.46,229.38,2.36]
[1734036226868,1.352,229.48,229.38,2.36]
[1734036227661,2.1788,229.45,229.41,2.1791]
[1734036229760,2.1787,229.46,229.38,2.36]
[1734036230362,2.1787,229.46,229.41,2.179]
[1734036230566,2.1785,229.48,229.4,10.05737653]
[1734036230766,11.44417653,229.52,229.43,2.1789]
[1734036230963,0.67266992,229.51,229.43,4.5389]
[1734036231169,2.1786,229.48,229.43,4.5389]
[1734036231368,1.3868,229.52,229.43,2.36]